Cogmind - Beta 11 X5 @@@ ROGUE MODE // 2021.06.11 @ 00:40:18 Player: Runia Result: Core destroyed Performance ------------- Evolutions (9) 4500 Regions Visited (15) 3000 Robots Destroyed (219) 1095 Value Destroyed (10080) 10080 Prototype IDs (17) 340 Alien Tech Used (0) 0 Bonus (1397) 1397 TOTAL SCORE: 20412 Bonus ------- High Alert Combat Kills 857 Follower Combat Kills 340 Network Hubs Disabled 200 Cogmind --------- Core Integrity 0/1600 Matter 198/300 Energy 35/100 System Corruption 19% Temperature Cool (0) Movement Core (50) Location -1/Access Parts ------- > --- POWER (2) -------- (None) > --- PROPULSION (6) --- (None) > --- UTILITY (13) ----- Enhanced Optical Array Improved Launcher Guidance Computer > --- WEAPON (4) ------- (None) > --- INVENTORY (5) ---- Advanced Target Analyzer Advanced Datajack Peak State ------------ > --- POWER ------------ Particle Reactor Light Quantum Reactor > --- PROPULSION ------- Armored Heavy Treads Armored Heavy Treads Improved Heavy Siege Treads > --- UTILITY ---------- Advanced Thermal Generator Advanced Heat Sink Advanced Heat Sink Huge Storage Unit Improved Energy Well Enhanced Optical Array Improved Sensor Array Improved Signal Interpreter Improved Shock Absorption System Improved Hacking Suite Improved System Restoration Module > --- WEAPON ----------- Wave Gun Wave Gun Advanced Variable Charge Gun Railgun > --- INVENTORY -------- Centrium Heavy Treads Myomer Leg Enhanced Optical Array Terrain Scanner Stasis Canceller Improved Shock Absorption System Tiamat Missile Launcher Tiamat Missile Launcher Advanced Datajack Plasma Sword [Rating: 153] Favorites ----------- Power Heavy Antimatter Reactor Engine Improved Deuterium Engine Power Core Micro Fission Core Reactor Heavy Antimatter Reactor Propulsion Compact Wheel Treads Improved Heavy Treads Leg Aluminum Leg Wheel Compact Wheel Flight Unit Q-thruster Utility Advanced Heat Sink Device Advanced Heat Sink Storage Huge Storage Unit Processor Enhanced Optical Array Hackware Improved Hacking Suite Protection Improved Light Armor Plating Weapon Enhanced Force Rifle Energy Gun Enhanced Force Rifle Energy Cannon Matter Neutralizer Ballistic Gun Autogun Ballistic Cannon Gauss Cannon Launcher Tiamat Missile Launcher Special Weapon Improved Remote Datajack Slashing Weapon Axe Build | -11 -10 -9 -9 -8 -7 -6 -5 -5 -5 -5 -5 -4 -3 -2 -1 ------- Run | Scr Mat Mat Min Mat Fac Fac Fac Ext Cet Arc Hub Fac Res Res Acc Slots Evolved 18 | . . 2 . 2 2 2 2 . . . . 2 2 2 2 Power 1 | . . . . . . . 1 . . . . . . . . Propulsion 4 | . . 1 . . 1 . . . . . . 1 1 . . Utility 11 | . . 1 . 1 . 2 1 . . . . 1 1 2 2 Weapon 2 | . . . . 1 1 . . . . . . . . . . Parts Attached 294 | . 5 12 6 12 54 15 6 32 14 8 27 23 19 33 28 Power 25 | . 1 1 . 1 5 . 2 . 2 1 1 3 3 4 1 Engine 8 | . 1 1 . 1 4 . 1 . . . . . . . . Core 1 | . . . . . . . . . . . 1 . . . . Reactor 16 | . . . . . 1 . 1 . 2 1 . 3 3 4 1 Propulsion 72 | . 1 4 2 4 14 1 1 3 3 2 10 2 6 4 15 Treads 34 | . . . . 3 9 . . 1 2 2 4 1 5 2 5 Leg 9 | . 1 4 2 . . . . . . . . . . 1 1 Wheel 22 | . . . . 1 5 1 1 2 1 . 6 1 1 1 2 Hover . | . . . . . . . . . . . . . . . . Flight 7 | . . . . . . . . . . . . . . . 7 Utility 92 | . 1 2 . 3 13 12 2 12 6 2 9 5 6 12 7 Device 55 | . . 1 . . 8 5 2 7 5 . 7 2 5 8 5 Storage 7 | . 1 . . 1 1 1 . 1 . . . 1 . 1 . Processor 10 | . . 1 . . 1 3 . . . 1 1 . . 3 . Hackware 5 | . . . . . 1 . . 1 . . . 1 . . 2 Protection 15 | . . . . 2 2 3 . 3 1 1 1 1 1 . . Artifact . | . . . . . . . . . . . . . . . . Weapon 105 | . 2 5 4 4 22 2 1 17 3 3 7 13 4 13 5 Energy Gun 45 | . 1 2 2 1 9 1 1 9 1 1 4 6 2 4 1 Energy Cannon 6 | . . . . . . . . . 1 . . 2 . 1 2 Ballistic Gun 19 | . 1 1 . 2 5 . . 2 1 2 1 . 1 1 2 Ballistic Cannon 7 | . . . . . 2 . . . . . 2 2 1 . . Launcher 16 | . . 2 2 1 4 . . . . . . 1 . 6 . Special Weapon 4 | . . . . . . . . 4 . . . . . . . Impact Weapon . | . . . . . . . . . . . . . . . . Slashing Weapon 8 | . . . . . 2 1 . 2 . . . 2 . 1 . Piercing Weapon . | . . . . . . . . . . . . . . . . Special Melee Weapon . | . . . . . . . . . . . . . . . . Unidentified Prototypes 14 | . . . . . 6 . . . 2 . 2 3 1 . . Corrupted Parts 4 | . . . . . 4 . . . . . . . . . . System Corruption 32 | . . . . . 32 . . . . . . . . . . Parts Lost 135 | . 3 6 2 3 19 . 1 4 9 3 13 3 8 34 27 Power 13 | . . 1 . 1 1 . . . 1 . 1 1 . 6 1 Propulsion 47 | . 1 3 1 1 6 . . 2 4 1 5 1 3 5 14 Utility 34 | . . . . 1 4 . . . 2 2 2 1 3 11 8 Weapon 41 | . 2 2 1 . 8 . 1 2 2 . 5 . 2 12 4 Highest Loss Streak 18 | . 2 5 2 2 11 . 1 2 5 2 4 3 3 13 18 Average Slot Usage (%) 88 | . 84 88 99 97 92 92 93 93 89 85 90 93 85 68 38 Engine 3 | . 14 11 11 8 5 . 5 5 . . . . . . . Reactor 4 | . . . . . 1 6 4 5 10 11 8 6 9 4 . Treads 9 | . . . . 12 18 10 5 5 10 14 9 8 10 8 6 Leg 4 | . 28 32 32 6 . . . . . . . . . . 2 Wheel 6 | . . . . 6 8 8 11 10 2 . 6 11 5 . . Device 13 | . . 6 11 9 7 15 23 20 18 15 10 17 17 16 5 Storage 7 | . 14 11 11 9 7 6 5 7 6 5 5 6 8 7 2 Processor 8 | . . 5 11 9 5 12 5 5 5 7 15 10 9 10 10 Hackware 1 | . . . . . 1 . . . . . . 3 4 4 2 Protection 3 | . . . . 8 4 4 5 5 8 3 5 1 . . . Energy Gun 11 | . 9 10 10 8 9 14 22 19 6 5 8 9 10 8 . Ballistic Gun 7 | . 18 10 11 17 14 . . 2 11 11 8 1 1 1 2 Ballistic Cannon 1 | . . . . . 3 6 . . . . 1 4 2 . . Naked Turns . | . . . . . . . . . . . . . . . . Heaviest Build 168 | 14 28 31 33 98 124 126 137 142 160 163 168 151 161 163 46 Greatest Support 195 | 20 20 30 30 30 97 32 75 103 98 126 126 103 195 195 75 Greatest Overweight (x) 14 | . 2 1 1 9 12 7 8 14 7 2 14 4 4 6 4 Average Overweight (x) 3 | . . . . 6 5 5 4 3 1 1 4 2 2 1 . Largest Inventory Capacity 25 | 8 15 15 15 25 25 25 25 25 25 25 25 25 25 25 5 Average Capacity 22 | 8 13 15 15 20 25 25 25 25 25 25 25 25 25 20 5 Most Carried 25 | 5 10 15 15 18 25 25 25 25 25 25 25 25 25 19 5 Average Carried 19 | 5 7 12 14 13 20 23 23 24 23 24 24 24 23 9 3 Final Capacity 25 | 8 15 15 15 25 25 25 25 25 25 25 25 25 25 5 5 Final Carried 25 | 4 10 15 13 18 25 24 25 25 25 25 25 25 20 5 2 Class Distribution -------------------- 36% | Scavenger-Tank 15% | Scavenger-Mutant 13% | Mutant 11% | Scavenger-Gunner 11% | Scavenger-Skirmisher 3% | Tank Dominant Class ---------------- Mutant | -10/Materials Scavenger-Mutant | -9/Materials Scavenger-Mutant | -9/Mines Scavenger-Tank | -8/Materials Scavenger-Gunner | -7/Factory Gunner | -6/Factory Scavenger-Tank | -5/Factory Scavenger-Tank | -5/Extension Scavenger-Tank | -5/Cetus Scavenger-Tank | -5/Archives Scavenger-Gunner | -5/Hub_04(d) Scavenger-Skirmisher | -4/Factory Scavenger-Skirmisher | -3/Research Skirmisher | -2/Research Mutant | -1/Access Resources | -11 -10 -9 -9 -8 -7 -6 -5 -5 -5 -5 -5 -4 -3 -2 -1 ----------- Run | Scr Mat Mat Min Mat Fac Fac Fac Ext Cet Arc Hub Fac Res Res Acc Matter Collected 5785 | 200 101 122 80 212 1298 44 255 513 332 94 1047 323 576 418 170 Remotely . | . . . . . . . . . . . . . . . . Salvage Created 9871 | . 357 440 36 335 1405 42 515 1783 624 390 1735 416 714 979 100 Parts 534 | . 17 29 16 20 77 7 39 83 28 11 109 29 32 30 7 Haulers Intercepted . | . . . . . . . . . . . . . . . . Recyclers Shooed 6 | . . . . . . 1 3 . . . . 1 . 1 . Parts Field Recycled . | . . . . . . . . . . . . . . . . Retrieved Matter . | . . . . . . . . . . . . . . . . Parts Self-Destructed . | . . . . . . . . . . . . . . . . Prevented . | . . . . . . . . . . . . . . . . Kills | -11 -10 -9 -9 -8 -7 -6 -5 -5 -5 -5 -5 -4 -3 -2 -1 ------- Run | Scr Mat Mat Min Mat Fac Fac Fac Ext Cet Arc Hub Fac Res Res Acc Combat Hostiles Destroyed 175 | . 8 10 8 9 28 1 12 21 9 4 26 6 15 17 1 Melee 1 | . . . . . . . . . . . . . . 1 . Guns 121 | . 8 6 . 6 14 1 11 18 8 2 23 3 10 10 1 Cannons 17 | . . . . . 3 . 1 . 1 2 3 2 5 . . AOE 31 | . . 4 8 3 10 . . . . . . . . 6 . Classes Destroyed 15 | . 1 2 3 1 6 . . 2 . . . . . . . Worker 16 | . . . 1 . 1 . 3 1 . . 6 . 2 1 1 Builder 11 | . . . 1 . 2 . 1 1 . . 4 2 . . . Tunneler 3 | . . . . . 2 . . . . . . . . 1 . Recycler 6 | . . . . . 3 . . 2 . . 1 . . . . Operator 2 | . . . . . . . . 2 . . . . . . . Watcher 6 | . . 1 . . 1 . . 1 . . 1 1 . 1 . Swarmer 39 | . . . 8 3 6 . 9 4 . . 5 . 4 . . Grunt 48 | . 8 7 . 1 10 . 1 4 4 . 6 . . 7 . Brawler 4 | . . . . . 4 . . . . . . . . . . Duelist 3 | . . . . . 1 . . 1 . . . . . 1 . Protector 1 | . . . . . 1 . . . . . . . . . . Sentry 30 | . . 3 . 4 4 . . 7 . 4 3 1 2 2 . Hunter 22 | . . . . 1 . . . 3 1 . 6 3 6 2 . Programmer 21 | . . . . . 2 1 2 . . . 5 2 3 5 1 Behemoth 3 | . . . . . . . . 2 . . 1 . . . . Cetus Guard 4 | . . . . . . . . . 4 . . . . . . Best Kill Streak 8 | . 2 5 5 3 8 1 5 5 4 3 5 2 5 5 1 Combat Bots Only 5 | . 2 5 4 3 5 1 5 4 4 3 3 2 4 4 1 Max Kills in Single Turn 3 | . 1 3 2 2 3 1 2 2 1 1 2 2 2 3 1 Gunslinging 1 | . . . . . . . . 1 . . . . . . . Exploded 3 | . . 3 2 2 3 . . . . . . . . 3 . Melee 1 | . . . . . . . . . . . . . . 1 . Uniques/NPCs Destroyed . | . . . . . . . . . . . . . . . . Combat | -11 -10 -9 -9 -8 -7 -6 -5 -5 -5 -5 -5 -4 -3 -2 -1 -------- Run | Scr Mat Mat Min Mat Fac Fac Fac Ext Cet Arc Hub Fac Res Res Acc Damage Taken 26100 | . 477 648 155 587 2685 32 473 1246 1771 487 3025 330 2873 6162 5149 Core 4252 | . 94 108 30 41 277 6 31 272 74 29 297 43 166 1183 1601 Absorbed by Shields 648 | . . . . . . . 23 354 13 . . . 258 . . Reduced by Siege Mode 462 | . . . . . . . . 7 47 . 7 . . 401 . Core Remaining (%) 70 | 100 62 . 65 92 60 99 . . . . 29 96 87 18 . Volleys Fired 545 | . 27 40 8 29 84 3 20 72 33 16 81 19 47 44 22 Largest 4 | . 2 2 2 3 4 4 4 4 4 4 4 4 4 4 3 Hottest 355 | . 60 63 63 99 274 259 292 308 238 240 254 312 319 355 243 Shots Fired 1530 | . 52 69 9 83 222 11 79 186 113 50 252 64 167 145 28 Gun 1270 | . 52 67 2 81 185 8 76 155 106 39 203 42 121 121 12 Cannon 199 | . . . . . 29 3 3 . 7 11 49 22 46 13 16 Launcher 30 | . . 2 7 2 8 . . . . . . . . 11 . Special 31 | . . . . . . . . 31 . . . . . . . Kinetic 621 | . 32 36 1 54 145 3 3 6 58 31 144 35 38 29 6 Thermal 829 | . 9 31 1 27 69 8 76 149 55 19 100 29 129 105 22 Explosive 28 | . . 2 7 2 6 . . . . . . . . 11 . Electromagnetic 21 | . 11 . . . 2 . . . . . 8 . . . . Robot Hit Streak 29 | . 11 11 4 13 16 3 8 23 29 14 22 7 9 21 9 Robot Miss Streak 4 | . 3 4 1 2 4 2 3 3 4 3 4 2 3 4 3 Penetration Max 2 | . . . . . 1 . . . 1 . 2 1 1 . . Secondary Targets 15 | . 1 1 . . . . . 6 2 . 2 . . 3 . Max Gunslinging Chain 1 | . 1 1 . . . . . 1 1 . 1 . . 1 . Capacitor 6 | . . . . . . . . . . . . . . . 6 Shots Hit Robots 991 | . 39 49 3 59 143 5 36 141 83 34 144 41 97 97 20 Core Hits 443 | . 19 24 12 24 77 1 21 43 30 15 65 20 36 51 5 Critical Kills 27 | . . . . . 1 . 3 8 2 1 8 1 1 2 . Critical Parts Destroyed 27 | . . . . . 1 . 3 4 . . 12 . 6 1 . Critical Strikes 86 | . . . . 2 9 1 7 13 2 1 29 3 11 8 . Burn 15 | . . . . 2 6 . 1 . . . 1 1 . 4 . Meltdown 1 | . . . . . . . . . . . . 1 . . . Destroy 54 | . . . . . 2 . 6 13 2 1 20 . 7 3 . Blast 14 | . . . . . 1 1 . . . . 6 1 4 1 . Corrupt 2 | . . . . . . . . . . . 2 . . . . Melee Attacks 18 | . . . . . 1 . . 9 . . . 3 . 5 . Impact . | . . . . . . . . . . . . . . . . Slashing 18 | . . . . . 1 . . 9 . . . 3 . 5 . Piercing . | . . . . . . . . . . . . . . . . Sneak Attacks 3 | . . . . . . . . 1 . . . 1 . 1 . Combat Hostiles . | . . . . . . . . . . . . . . . . Follow-up Attacks . | . . . . . . . . . . . . . . . . Damage Inflicted 29309 | . 451 844 532 822 4084 133 1020 2939 2103 952 4448 1429 2991 5616 945 Guns 19071 | . 451 509 10 677 2166 82 997 2783 1939 718 3443 781 2016 2243 256 Cannons 4090 | . . . . . 409 51 23 . 164 234 740 564 975 317 613 Explosions 5573 | . . 335 522 145 1509 . . . . . 265 . . 2797 . Melee 499 | . . . . . . . . 156 . . . 84 . 259 . Ramming 76 | . . . . . . . . . . . . . . . 76 Kinetic 8561 | . 252 271 . 432 1789 51 23 74 1026 578 2353 694 470 480 68 Thermal 14745 | . 88 238 10 245 1078 82 997 2709 1077 374 1794 651 2521 2080 801 Explosive 4948 | . . 335 522 145 1149 . . . . . . . . 2797 . Electromagnetic 480 | . 111 . . . 68 . . . . . 301 . . . . Impact . | . . . . . . . . . . . . . . . . Slashing 499 | . . . . . . . . 156 . . . 84 . 259 . Piercing . | . . . . . . . . . . . . . . . . Highest Corruption 39 | . . . . . 39 . 2 2 2 2 7 5 2 7 19 Average Corruption 4 | . . . . . 20 . 1 2 2 2 3 3 1 3 10 Corruption Purged 9 | . . . . . . . . . . . . . . 9 . Effects 129 | . . . . . 36 . 2 22 5 6 25 5 5 13 10 Message Errors 35 | . . . . . 8 . 2 7 . 2 5 2 1 5 3 Matter Fused 14 | . . . . . 8 . . . . . 5 . . 1 . Heat Flow Errors 15 | . . . . . 5 . . 3 1 1 . 1 1 2 1 Energy Discharges 21 | . . . . . 4 . . 5 1 1 8 . 1 1 . Parts Rejected 1 | . . . . . . . . . . . 1 . . . . Data Loss (minor) 27 | . . . . . 6 . . 6 1 1 4 2 2 2 3 Data Loss (major) 2 | . . . . . 2 . . . . . . . . . . Misfires 1 | . . . . . 1 . . . . . . . . . . Misdirections 2 | . . . . . . . . . . . . . . . 2 Weapon Failures 11 | . . . . . 2 . . 1 2 1 2 . . 2 1 Overload Shots . | . . . . . . . . . . . . . . . . Overflow Damage 696 | . . . 29 . 275 . . . . 14 91 12 23 195 57 Projectiles 115 | . . . . . 3 . . . . 14 6 12 23 1 56 Explosions 478 | . . . 29 . 272 . . . . . 85 . . 92 . Melee 103 | . . . . . . . . . . . . . . 102 1 Knockbacks 27 | . . . . . 8 1 . . . . 9 1 5 2 1 Impact 1 | . . . . . . . . . . . . . . . 1 Kinetic 24 | . . . . . 7 1 . . . . 8 1 5 2 . Secondary 2 | . . . . . 1 . . . . . 1 . . . . Self-Inflicted Damage 958 | . . 10 88 . 450 . . . . . 99 . . 303 8 Shots 22 | . . 1 3 . 9 . . . . . 1 . . 8 . Rammed 27 | . . . . . . . . . . . . . . . 27 Targets Rammed 27 | . . . . . . . . . . . . . . . 27 Kicked . | . . . . . . . . . . . . . . . . Crushed . | . . . . . . . . . . . . . . . . Highest Temperature 637 | . 72 46 . 100 553 99 212 637 240 120 379 224 433 372 456 Average Temperature 114 | . 32 16 . 42 196 49 74 137 68 42 111 60 149 146 109 Received Heat Transfer 3379 | . 270 315 . 135 738 6 27 164 339 36 375 . 35 612 327 Effects 33 | . . . . . 14 . . 7 . . 5 . 4 3 . Shutdowns 7 | . . . . . 2 . . 3 . . 1 . . 1 . Energy Bleed 1 | . . . . . . . . . . . . . 1 . . Interference 12 | . . . . . 6 . . 1 . . 4 . . 1 . Matter Decay 1 | . . . . . . . . . . . . . 1 . . Short Circuit 3 | . . . . . 2 . . . . . . . 1 . . Damage (minor) 3 | . . . . . 1 . . . . . . . 1 1 . Damage (major) 5 | . . . . . 3 . . 2 . . . . . . . Damage (core) 1 | . . . . . . . . 1 . . . . . . . Siege Activations 5 | . . . . . . . . 2 1 . 1 . . 1 . Total Turns 88 | . . . . . . . . 20 21 . 22 . . 25 . Longest Duration 25 | . . . . . . . . 11 21 . 22 . . 25 . Robots Corrupted 1 | . . . . . . . . . . . 1 . . . . Combat Hostiles . | . . . . . . . . . . . . . . . . Parts Fried 3 | . . . . . . . . . . . 3 . . . . Impact Corruptions 1 | . . . . . . . . . . . . . . . 1 Robots Melted 5 | . . . . . 1 . . 3 . . . 1 . . . Combat Hostiles 5 | . . . . . 1 . . 3 . . . 1 . . . Parts Melted 65 | . . . . . 5 . 6 26 6 2 4 1 3 12 . Heat Transferred 22252 | . 200 525 25 777 2470 111 1480 4070 1656 535 2559 962 3256 2960 666 Parts Sabotaged 4 | . . . . . . . . . . . . . . 4 . Parts Stolen . | . . . . . . . . . . . . . . . . Parts Stripped . | . . . . . . . . . . . . . . . . Power Chain Reactions 1 | . . . . . . . . . . . 1 . . . . Missiles Intercepted . | . . . . . . . . . . . . . . . . Alert | -11 -10 -9 -9 -8 -7 -6 -5 -5 -5 -5 -5 -4 -3 -2 -1 ------- Run | Scr Mat Mat Min Mat Fac Fac Fac Ext Cet Arc Hub Fac Res Res Acc Peak Influence 1038 | . 260 272 245 392 1038 485 438 238 262 148 924 549 319 661 683 Initial 485 | . . 30 57 95 107 485 170 68 87 24 . 452 78 143 242 Average 299 | . 121 133 78 239 646 413 266 120 173 101 248 381 138 397 544 Maximum Alert Level 3 | . 1 1 1 1 3 2 2 1 1 . 3 2 1 2 2 Low Security (%) 50 | 100 78 87 96 30 22 . 21 92 53 100 54 21 70 24 . Level 1 21 | . 21 12 3 69 9 39 68 7 46 . 23 7 29 20 19 Level 2 17 | . . . . . 8 60 9 . . . 14 71 . 54 80 Level 3 10 | . . . . . 59 . . . . . 7 . . . . Level 4 . | . . . . . . . . . . . . . . . . Level 5 . | . . . . . . . . . . . . . . . . High Security . | . . . . . . . . . . . . . . . . Max Security . | . . . . . . . . . . . . . . . . Squads Dispatched 40 | . 2 . . 1 9 1 2 3 . . 9 4 2 4 3 Investigation 7 | . 2 . . . 2 . 1 . . . . . . 1 1 Extermination 13 | . . . . . 3 1 1 . . . 3 2 1 1 1 Reinforcement 12 | . . . . 1 1 . . 3 . . 3 2 1 1 . Assault 4 | . . . . . 2 . . . . . . . . 1 1 Garrison 4 | . . . . . 1 . . . . . 3 . . . . Intercept . | . . . . . . . . . . . . . . . . Construction Impeded 1 | . . . . . . . . . . . . 1 . . . Haulers Reinforced 1 | . . . . . . . . . . . 1 . . . . Cargo Convoy Interrupts 1 | . . . . . 1 . . . . . . . . . . Stealth | -11 -10 -9 -9 -8 -7 -6 -5 -5 -5 -5 -5 -4 -3 -2 -1 --------- Run | Scr Mat Mat Min Mat Fac Fac Fac Ext Cet Arc Hub Fac Res Res Acc Distress Signals 17 | . . 3 1 . 2 . . 1 . . 6 . 1 3 . Communications Jammed 33 | . . . . . . . 2 3 . . . . 28 . . Distress Signals 31 | . . . . . . . . 3 . . . . 28 . . Times Spotted 309 | . 10 20 7 21 46 2 13 33 11 10 57 8 23 29 19 Peak Tracking Total 8 | . 3 8 4 7 6 1 5 4 5 1 4 3 3 7 7 Tactical Retreats 17 | . 1 1 . . 2 . 1 . . . 9 . . 1 2 Traps | -11 -10 -9 -9 -8 -7 -6 -5 -5 -5 -5 -5 -4 -3 -2 -1 ------- Run | Scr Mat Mat Min Mat Fac Fac Fac Ext Cet Arc Hub Fac Res Res Acc Traps Triggered 15 | . 1 . . . 4 . . 6 . . 1 . 1 2 . Indirectly . | . . . . . . . . . . . . . . . . Trap Hack Attempts . | . . . . . . . . . . . . . . . . Triggered . | . . . . . . . . . . . . . . . . Disarmed . | . . . . . . . . . . . . . . . . Reprogrammed . | . . . . . . . . . . . . . . . . Reused . | . . . . . . . . . . . . . . . . Traps Extracted . | . . . . . . . . . . . . . . . . Installed . | . . . . . . . . . . . . . . . . Triggered 1 | . . . . . 1 . . . . . . . . . . Machines | -11 -10 -9 -9 -8 -7 -6 -5 -5 -5 -5 -5 -4 -3 -2 -1 ---------- Run | Scr Mat Mat Min Mat Fac Fac Fac Ext Cet Arc Hub Fac Res Res Acc Machines Disabled 39 | . 1 . 5 . 6 . . 1 3 2 11 . 1 9 . Max in Single Turn 4 | . 1 . 2 . 4 . . 1 1 1 3 . 1 2 . Garrison Access 3 | . . . . . 1 . . . . . 1 . . . 1 Network Hub 1 | . . . . . . . . . . . 1 . . . . Machines Sabotaged . | . . . . . . . . . . . . . . . . Garrisons Compromised 1 | . . . . . 1 . . . . . . . . . . Overloaded Fab Kills . | . . . . . . . . . . . . . . . . Fab Network Shutdowns 1 | . . . . . . . . . . . . . . . 1 Hacking | -11 -10 -9 -9 -8 -7 -6 -5 -5 -5 -5 -5 -4 -3 -2 -1 --------- Run | Scr Mat Mat Min Mat Fac Fac Fac Ext Cet Arc Hub Fac Res Res Acc Machines Accessed 42 | . 2 1 . 3 5 2 4 11 1 . 4 3 3 1 2 Terminals 28 | . 1 1 . 1 3 2 . 10 1 . 3 2 3 1 . Fabricators 1 | . . . . . . . . . . . . . . . 1 Repair Stations 2 | . . . . 1 . . 1 . . . . . . . . Recycling Units 3 | . 1 . . 1 . . . 1 . . . . . . . Scanalyzers 4 | . . . . . 1 . 2 . . . . 1 . . . Garrison Access 4 | . . . . . 1 . 1 . . . 1 . . . 1 Total Hacks 111 | . 9 2 . 6 16 3 6 20 1 . 5 12 23 3 5 Successful 52 | . 5 1 . 4 8 1 2 10 1 . 3 2 12 1 2 Failed 59 | . 4 1 . 2 8 2 4 10 . . 2 10 11 2 3 Catastrophic 7 | . . . . . 1 1 1 3 . . . . 1 . . Database Lockouts . | . . . . . . . . . . . . . . . . Manual 32 | . 8 . . . 2 . 1 6 . . . 1 11 1 2 Terminals 81 | . 8 2 . 3 7 3 . 18 1 . 4 9 23 3 . Fabricators 2 | . . . . . . . . . . . . . . . 2 Repair Stations 4 | . . . . 2 . . 2 . . . . . . . . Recycling Units 4 | . 1 . . 1 . . . 2 . . . . . . . Scanalyzers 11 | . . . . . 6 . 2 . . . . 3 . . . Garrison Access 9 | . . . . . 3 . 2 . . . 1 . . . 3 Terminal Hacks 28 | . 2 1 . 1 1 1 . 7 1 . 2 2 9 1 . Part Schematic 2 | . 1 . . . . . . . . . . . 1 . . Prototype ID Bank 2 | . . . . 1 . . . . . . . . 1 . . Open Door 4 | . . . . . . . . 3 1 . . . . . . Level Access Points 2 | . . . . . . 1 . . . . . . 1 . . Branch Access Points 1 | . . . . . . . . . . . . . 1 . . Alert Level 6 | . . 1 . . . . . 2 . . 1 1 . 1 . Unreport Threat 4 | . . . . . 1 . . . . . . 1 2 . . Locate Traps 2 | . . . . . . . . . . . 1 . 1 . . Recall Reinforcements 1 | . . . . . . . . 1 . . . . . . . Registered Components 1 | . . . . . . . . . . . . . 1 . . Zone Layout 3 | . 1 . . . . . . 1 . . . . 1 . . Fabricator Hacks 1 | . . . . . . . . . . . . . . . 1 Build 1 | . . . . . . . . . . . . . . . 1 Repair Station Hacks 4 | . . . . 2 . . 2 . . . . . . . . Scan Component 2 | . . . . 1 . . 1 . . . . . . . . Repair 2 | . . . . 1 . . 1 . . . . . . . . Recycling Unit Hacks 1 | . . . . 1 . . . . . . . . . . . Report Inventory 1 | . . . . 1 . . . . . . . . . . . Scanalyzer 6 | . . . . . 6 . . . . . . . . . . Insert Component 3 | . . . . . 3 . . . . . . . . . . Analyze 3 | . . . . . 3 . . . . . . . . . . Garrison Access Hacks 1 | . . . . . . . . . . . 1 . . . . Seal Access 1 | . . . . . . . . . . . 1 . . . . Unauthorized Hacks 11 | . 3 . . . 1 . . 3 . . . . 3 . 1 Terminals 7 | . 2 . . . . . . 2 . . . . 3 . . Track 1 | . . . . . . . . 1 . . . . . . . Assimilate 1 | . . . . . . . . . . . . . 1 . . Botnet 4 | . 1 . . . . . . 1 . . . . 2 . . Operators 1 | . 1 . . . . . . . . . . . . . . Fabricators . | . . . . . . . . . . . . . . . . Repair Stations . | . . . . . . . . . . . . . . . . Recycling Units 2 | . 1 . . . . . . 1 . . . . . . . Mask 1 | . . . . . . . . 1 . . . . . . . Tunnel 1 | . 1 . . . . . . . . . . . . . . Scanalyzers . | . . . . . . . . . . . . . . . . Garrison Access 2 | . . . . . 1 . . . . . . . . . 1 Jam 2 | . . . . . 1 . . . . . . . . . 1 Data Cores Recovered . | . . . . . . . . . . . . . . . . Used . | . . . . . . . . . . . . . . . . Hacking Detections 36 | . 1 1 . 3 5 2 3 9 . . 3 3 3 1 2 Full Trace Events 2 | . . . . . 1 . 1 . . . . . . . . Feedback Events . | . . . . . . . . . . . . . . . . Feedback Blocked . | . . . . . . . . . . . . . . . . Robot Schematics Acquired . | . . . . . . . . . . . . . . . . Robots Built . | . . . . . . . . . . . . . . . . Matter . | . . . . . . . . . . . . . . . . Time . | . . . . . . . . . . . . . . . . Total Robot Build Rating . | . . . . . . . . . . . . . . . . Part Schematics Acquired 5 | . 1 . . . 3 . . . . . . . 1 . . Parts Built 2 | . . . . . . . . . . . . . . . 2 Matter 278 | . . . . . . . . . . . . . . . 278 Time 46 | . . . . . . . . . . . . . . . 46 Total Part Build Rating 18 | . . . . . . . . . . . . . . . 18 Parts Repaired 2 | . . . . 1 . . 1 . . . . . . . . Time 131 | . . . . 32 . . 99 . . . . . . . . Parts Recycled . | . . . . . . . . . . . . . . . . Recycled Matter . | . . . . . . . . . . . . . . . . Retrieved Matter . | . . . . . . . . . . . . . . . . Retrieved Components . | . . . . . . . . . . . . . . . . Parts Scanalyzed 3 | . . . . . 3 . . . . . . . . . . Part Schematics Acquired 3 | . . . . . 3 . . . . . . . . . . Parts Damaged . | . . . . . . . . . . . . . . . . Bothacking | -11 -10 -9 -9 -8 -7 -6 -5 -5 -5 -5 -5 -4 -3 -2 -1 ------------ Run | Scr Mat Mat Min Mat Fac Fac Fac Ext Cet Arc Hub Fac Res Res Acc Used RIF Installer . | . . . . . . . . . . . . . . . . Robots Hacked . | . . . . . . . . . . . . . . . . Non-combat . | . . . . . . . . . . . . . . . . Combat . | . . . . . . . . . . . . . . . . Robot Hacks Applied . | . . . . . . . . . . . . . . . . Relay Couplers Released . | . . . . . . . . . . . . . . . . Robots Rewired 15 | . . . . . . . . 15 . . . . . . . Allies Hacked . | . . . . . . . . . . . . . . . . Hacks Repelled . | . . . . . . . . . . . . . . . . Allies | -11 -10 -9 -9 -8 -7 -6 -5 -5 -5 -5 -5 -4 -3 -2 -1 -------- Run | Scr Mat Mat Min Mat Fac Fac Fac Ext Cet Arc Hub Fac Res Res Acc Total Allies 37 | . . . . . 18 . . 18 . . . . 1 . . Largest Group 18 | . . . . . 18 . . 12 . . . . 1 . . Highest-Rated Group 729 | . . . . . 729 . . 338 . . . . 10 . . Highest-Rated Ally 156 | . . . . . 74 . . 156 . . . . 10 . . Total Orders . | . . . . . . . . . . . . . . . . Ally Attacks 109 | . . . . . 24 . . 85 . . . . . . . Total Damage 2351 | . . . . . 710 . . 1641 . . . . . . . Kills 16 | . . . . . 5 . . 11 . . . . . . . Allies Corrupted . | . . . . . . . . . . . . . . . . Allies Melted 1 | . . . . . . . . 1 . . . . . . . Intel | -11 -10 -9 -9 -8 -7 -6 -5 -5 -5 -5 -5 -4 -3 -2 -1 ------- Run | Scr Mat Mat Min Mat Fac Fac Fac Ext Cet Arc Hub Fac Res Res Acc Robot Analysis Total . | . . . . . . . . . . . . . . . . Derelict Logs Recovered 3 | . . . 3 . . . . . . . . . . . . Drone Launches . | . . . . . . . . . . . . . . . . Drone Recoveries . | . . . . . . . . . . . . . . . . Exploration | -11 -10 -9 -9 -8 -7 -6 -5 -5 -5 -5 -5 -4 -3 -2 -1 ------------- Run | Scr Mat Mat Min Mat Fac Fac Fac Ext Cet Arc Hub Fac Res Res Acc Turns Passed 14078 | 1 570 477 722 586 2302 656 895 2168 418 506 1592 1023 911 610 641 Spaces Moved 6036 | 1 262 259 558 212 878 325 339 827 116 169 566 475 421 204 424 Core 234 | . . . . . . . . . . . . . . 15 219 Treads 1618 | . . . . . 209 . 95 428 103 169 210 97 162 140 5 Legs 1322 | 1 262 259 558 49 . . . . . . . . . 30 163 Wheels 2839 | . . . . 163 669 325 244 399 13 . 356 378 259 19 14 Hover . | . . . . . . . . . . . . . . . . Flight 23 | . . . . . . . . . . . . . . . 23 Fastest Speed 40 | 120 120 120 120 125 140 145 160 160 185 260 165 123 160 100 40 Average Speed 183 | 120 174 121 121 199 204 183 207 222 251 261 207 172 169 192 98 Slowest Speed 360 | 120 280 200 200 280 260 205 260 290 260 360 290 260 280 280 200 Overloaded Moves . | . . . . . . . . . . . . . . . . Propulsion Burnouts . | . . . . . . . . . . . . . . . . Robots Hopped . | . . . . . . . . . . . . . . . . Cave-ins Triggered . | . . . . . . . . . . . . . . . . Exploration Rate (%) 36 | 2 30 22 99 27 26 10 7 86 70 99 54 15 13 12 15 Regions Visited 15 Branch Regions 5 Pre-discovered Areas 2 | . 1 . 1 . . . . . . . . . . . . Known Exits Taken 7 | . . . . 1 . 1 . . . 1 1 1 1 1 . Unknown Exits Taken 8 | 1 1 1 1 . 1 . 1 1 1 . . . . . . Scrap Searched 3 | . . . 3 . . . . . . . . . . . . Spaces Dug 164 | . . . . . 1 . . . . . 161 2 . . . Terrain Destroyed 521 | . . 23 60 14 96 . 3 . 9 7 219 13 16 58 3 Melee 3 | . . . . . 1 . . . . . . 2 . . . Projectile 116 | . . . . . 4 . 3 . 9 7 58 11 14 7 3 AOE 400 | . . 23 60 14 91 . . . . . 161 . . 51 . Terrain Rammed . | . . . . . . . . . . . . . . . . Walls Destroyed . | . . . . . . . . . . . . . . . . Machines Disabled . | . . . . . . . . . . . . . . . . Actions | -11 -10 -9 -9 -8 -7 -6 -5 -5 -5 -5 -5 -4 -3 -2 -1 --------- Run | Scr Mat Mat Min Mat Fac Fac Fac Ext Cet Arc Hub Fac Res Res Acc Total 7991 | 2 328 362 593 321 1220 379 483 1040 173 198 811 636 512 320 613 Wait 748 | . 20 25 16 54 147 13 108 62 . . 103 82 3 22 93 Move 6021 | . 261 258 557 211 877 324 338 826 115 168 565 474 420 203 424 Hop . | . . . . . . . . . . . . . . . . Pick Up 203 | . 12 20 3 12 41 11 8 12 6 1 24 15 9 12 17 Fast Attach 47 | . . . . 2 12 4 . 1 3 4 4 5 2 3 7 Attach 147 | . 4 9 2 6 24 4 4 6 6 . 16 8 11 26 21 Detach 3 | . . . . . . . . . . . . . 2 . 1 Swap 100 | . 1 3 4 4 18 7 2 25 5 4 7 10 6 4 . Drop 122 | 2 3 7 3 3 16 13 3 16 5 5 11 20 12 1 2 Fire 545 | . 27 40 8 29 84 3 20 72 33 16 81 19 47 44 22 Melee 18 | . . . . . 1 . . 9 . . . 3 . 5 . Ram 1 | . . . . . . . . . . . . . . . 1 Kick . | . . . . . . . . . . . . . . . . Crush 25 | . . . . . . . . . . . . . . . 25 Escape Stasis 11 | . . . . . . . . 11 . . . . . . . Rewire . | . . . . . . . . . . . . . . . . Trap . | . . . . . . . . . . . . . . . . Miscellaneous . | . . . . . . . . . . . . . . . . Route ------- -11/Scrapyard -10/Materials -9/Materials -9/Mines (discovered 2 exits: *Mat x2) -8/Materials (discovered 3 exits: *Fac x3) -7/Factory -6/Factory (discovered 4 exits: *Fac x4) -5/Factory -5/Extension (discovered 2 exits: *Fac / *Cet) -5/Cetus -5/Archives (discovered 3 exits: *Fac / *Hub x2) -5/Hub_04(d) -4/Factory -3/Research (discovered 5 exits: *Res x3 / Tes x2) -2/Research -1/Access History --------- Turn | Location | Event 2 | -11/Scrapyard | Discovered new exit (range 0) 2 | -11/Scrapyard | Entered Materials 319 | -10/Materials | Build established: Mutant 358 | -10/Materials | Discovered new exit (range 5) 572 | -10/Materials | Entered another Materials area 572 | -9/Materials | Evolved 2 slots: Propulsion x1, Utility x1 834 | -9/Materials | Discovered new exit (range 7) 873 | -9/Materials | Build established: Scavenger-Mutant 964 | -9/Materials | Lost 5 parts (1p2n2w) 1049 | -9/Materials | Entered Mines 1173 | -9/Mines | Learned location of 1 exit from Materials 1202 | -9/Mines | Learned 4 Materials zone layouts 1206 | -9/Mines | Learned location of Storage (-9) 1408 | -9/Mines | Received a Rocket Launcher from a helpful Derelict 1704 | -9/Mines | Discovered new exit (range 9) 1741 | -9/Mines | Discovered new exit (range 8) 1771 | -9/Mines | Entered Materials 1771 | -8/Materials | Evolved 2 slots: Utility x1, Weapon x1 1772 | -8/Materials | Identified exit to Factory 2159 | -8/Materials | Repaired Autogun 2357 | -8/Materials | Entered Factory 2357 | -7/Factory | Evolved 2 slots: Propulsion x1, Weapon x1 2654 | -7/Factory | Build established: Scavenger-Gunner 3094 | -7/Factory | Cargo convoy interrupted 3271 | -7/Factory | Garrison activated, responded to threat 3404 | -7/Factory | Build established: Scavenger-Tank 3557 | -7/Factory | First assault squad dispatched 3813 | -7/Factory | Lost 11 parts (1p4n1u5w) 4129 | -7/Factory | System corruption reached 10% 4188 | -7/Factory | Build established: Mutant 4283 | -7/Factory | System corruption reached 30% 4470 | -7/Factory | Discovered new exit (range 11) 4659 | -7/Factory | Entered another Factory area 4659 | -6/Factory | Evolved 2 slots: Utility x2 5278 | -6/Factory | Identified exit to Factory 5315 | -6/Factory | Entered another Factory area 5315 | -5/Factory | Evolved 2 slots: Power x1, Utility x1 5543 | -5/Factory | Build established: Scavenger-Tank 5739 | -5/Factory | Discovered new exit (range 13) 5868 | -5/Factory | Repaired Hvy. Antimatter Reactor 6210 | -5/Factory | Entered Extension 6819 | -5/Extension | Rescued a captive Derelict 6964 | -5/Extension | Rescued A7 7461 | -5/Extension | Spotted B-75 Beast 7478 | -5/Extension | Destroyed B-75 Beast 7489 | -5/Extension | Spotted B-75 Beast 7492 | -5/Extension | Extracted ID and sensor layout for unrecognized location from A7's data core 7548 | -5/Extension | Destroyed B-75 Beast 7585 | -5/Extension | Disrupted transfer network 7741 | -5/Extension | Rescued a captive Derelict 8349 | -5/Extension | Discovered new exit (range 10) 8351 | -5/Extension | Discovered new exit (range 6) 8378 | -5/Extension | Entered Cetus 8399 | -5/Cetus | Spotted Cetus Guard 8399 | -5/Cetus | Spotted Cetus Guard 8399 | -5/Cetus | Spotted Cetus Guard 8399 | -5/Cetus | Spotted Cetus Guard 8421 | -5/Cetus | Destroyed Cetus Guard 8434 | -5/Cetus | Destroyed Cetus Guard 8454 | -5/Cetus | Destroyed Cetus Guard 8459 | -5/Cetus | Lost 5 parts (1p3n1u) 8470 | -5/Cetus | Destroyed Cetus Guard 8610 | -5/Cetus | Cetus Manufacturing Module disabled 8739 | -5/Cetus | Discovered new exit (range 22) 8796 | -5/Cetus | Entered Archives 8911 | -5/Archives | Discovered new exit (range 22) 8924 | -5/Archives | Unable to access archive contents 8937 | -5/Archives | Discovered new exit (range 21) 9003 | -5/Archives | Discovered new exit (range 22) 9033 | -5/Archives | Unable to access archive contents 9094 | -5/Archives | Identified exit to Factory 9198 | -5/Archives | Identified exit to Hub_04(d) 9302 | -5/Archives | Entered Hub_04(d) 9506 | -5/Hub_04(d) | Spotted B-75 Beast 9558 | -5/Hub_04(d) | Destroyed B-75 Beast 9670 | -5/Hub_04(d) | Lost 3 parts (2u1w) 9981 | -5/Hub_04(d) | Build established: Scavenger-Gunner 10323 | -5/Hub_04(d) | Garrison activated, responded to threat 10342 | -5/Hub_04(d) | Core integrity fell below 50% 10380 | -5/Hub_04(d) | Lost 4 parts (1n3w) 10767 | -5/Hub_04(d) | Discovered exit to Factory (range 5) 10892 | -5/Hub_04(d) | Network Hub disabled 10894 | -5/Hub_04(d) | Entered Factory 10894 | -4/Factory | Evolved 2 slots: Propulsion x1, Utility x1 11176 | -4/Factory | Lost 3 parts (1p1n1u) 11208 | -4/Factory | Build established: Scavenger-Skirmisher 11883 | -4/Factory | Discovered new exit (range 21) 11915 | -4/Factory | Identified exit to Research 11917 | -4/Factory | Entered Research 11917 | -3/Research | Evolved 2 slots: Propulsion x1, Utility x1 12159 | -3/Research | Identified exit to Testing 12234 | -3/Research | Identified exit to Research 12536 | -3/Research | Lost 3 parts (2n1u) 12828 | -3/Research | Entered another Research area 12828 | -2/Research | Evolved 2 slots: Utility x2 13020 | -2/Research | Lost 9 parts (2p2u5w) 13203 | -2/Research | Spotted B-90 Cyclops 13251 | -2/Research | Lost 13 parts (2p3n5u3w) 13290 | -2/Research | Discovered new exit (range 18) 13328 | -2/Research | First assault squad dispatched 13340 | -2/Research | Lost 3 parts (2n1u) 13356 | -2/Research | Identified exit to Access 13421 | -2/Research | Core integrity fell below 50% 13435 | -2/Research | Core integrity fell below 20% 13438 | -2/Research | Entered Access 13438 | -1/Access | Evolved 2 slots: Utility x2 13467 | -1/Access | Lost 9 parts (2p3u4w) 13533 | -1/Access | Fabricated Biometal Heavy Treads (x2) 13540 | -1/Access | Local fabrication network quarantined 13605 | -1/Access | Found Quantum Capacitor 13724 | -1/Access | Build established: Mutant 13732 | -1/Access | First assault squad dispatched 13945 | -1/Access | System corruption reached 10% 13985 | -1/Access | Lost 18 parts (8n7u3w) 14024 | -1/Access | Lost 4 parts (3n1u) 14041 | -1/Access | Core integrity fell below 50% 14062 | -1/Access | Core integrity fell below 20% 14079 | -1/Access | Core destroyed Last Messages --------------- Acquired Nova Cannon. System corrupted: Component data lost. System corrupted: Nova Cannon failed to cycle. Q-thruster destroyed. Penetrated by Slug. Destroyed Imp. Antigrav System. Penetrated by Slug. Slug penetrates Wall. Penetrated by Slug. Nova Cannon destroyed. Slammed into P-80 Master. P-80 Master resets H-88 Terminator, system corruption cleaned. Penetrated by Slug. Slug penetrates P-80 Master. Slug penetrates H-88 Terminator. P-80 Master destroyed. Penetrated by Slug. Acquired 70 matter. Slammed into Y-72 Warden. Destabilizing: Core damaged (-48). Map ----- +----------------------------------------------------+ | ?????????????????????????????????????????????????? | | ?????????????????????????????????????????????????? | | ?????????????????????????????????????????????????? | | ?????????????????????????????????????????????????? | | ?????????????????????????????????????????????????? | | ?????????????????????????????????????????????????? | | ?????????????????????????????????????????????????? | | ?????????????????????????????????????????????????? | | ?????????????????????????????????????????????????? | | ?????????????????????????????????????????????????? | | #####+###????????????????????????????????????????? | | ????????????????????????????????????????? | | ???????????????????????????????????????? | | ???????????????????????????????????????? | | ???????????????????????????????????????? | | ???????????????????????????????????????? | | ??????????????????????????????????????? | | ???????????????????????????????????????? | | #????????????????????????????????????????????????? | | ?????????????????????????????????????????????????? | | ????????????????????###########??????????????????? | | ???????????#####????# #??????????????????? | | ??????????? #????#| hp #??????????????????? | | ??????????? #????# [!h! #??????????????????? | | ###????????" #????# =! [=[ #??????????????????? | | #????????" #????#####@#####??????????????????? | | #?? ""??? ##########Y#?######???????????????? | | # ""??? # # # #???????????????? | | + ""??? #! # # #???????????????? | | #????????? # + + #???????????????? | | #????????? # # # * #???????????????? | | #????????? # ! # ########???????????????? | | # #????????? # + ??????????????????????? | | # #????????? # # ?????????????????????? | | # #?????????#+##/######## ????????????????????? | | # #?????????# #?????? ????????????????????? | | # ########### ###### """?????????????????? | | + ?????????????? | | ####+########+###### ?????????????? | | #? ??# !#????? ?????????????? | | ## ! ## #???????#+#######????????????????? | | ## ## #????????????????????????????????? | | ## ## #????????????????????????????????? | | ?# ## #????????????????????????????????? | | ?# ## #????????????????????????????????? | | ?################????????????????????????????????? | | ?????????????????????????????????????????????????? | | ?????????????????????????????????????????????????? | | ?????????????????????????????????????????????????? | | ?????????????????????????????????????????????????? | +----------------------------------------------------+ Best States ------------- Heat Dissipation 107 Energy Generation 45 Energy Capacity 980 Matter Stores 300 Matter Capacity 300 Sight Range 22 Robot Scan Range 15 Terrain Scan Range 14 Terrain Scan Density 10 Jamming Range 16 Armor Coverage 900 Resistance: EX 50 Phase Shifting 10 Evasion (%) 58 Targeting Accuracy 6 Launcher Accuracy 30 Target Analysis 6 Core Analysis 6 Recoil Reduction 6 Energy Filtering 30 Kinecelleration 30 Stasis Canceling 1 Offensive Hacking 12 Defensive Hacking 22 Item Schematics ----------------- Lrg. Storage Unit | -10/Materials | Hacked Field Recycling Unit | -7/Factory | Scanalyzed Imp. Signal Interpreter | -7/Factory | Scanalyzed Com. Wheel | -7/Factory | Scanalyzed Centrium Wheel | -3/Research | Hacked Robot Schematics ------------------ None Fabricated ------------ Biometal Heavy Treads | x2 | -1/Access | Preloaded Alien Tech Used ----------------- None Achievements -------------- None Challenges ------------ None Game ------ Seed BehemothXenonGenerator Manual? 0 Play Time 01:39:04 Cumulative 201.0 hours Start 2021.06.10 @ 23:00:14 End 2021.06.11 @ 00:40:18 Sessions 1 Manual Loads 0 Difficulty Rogue Special Mode None Game No. 249 Rogue 249 Adventurer 0 Explorer 0 Win Type - Total 2 Types 2/0/0/0/0/0/0/0/0 Lore% 58 Gallery% 77 Achievement% 57 Wizard Run 0 Options --------- ASCII 0 Keyboard 0 Movement Mouse Keybinds 1 Fullscreen 2 Font 24/Smallcaps Map View 76x50 Tactical HUD 1 Map Filters NONE Filters NONE Steam 1 RUN: 9c237e2b-17a9-4910-9902-0d4ad1b5a1d3